[Event "Titled Tuesday Blitz August 31 2021"]
[White "Martin Duque, Jesus"]
[Black "Materia, Marco"]
[WhiteFideId "2208954"]
[BlackFideId "45150451"]
[WhiteElo "2224"]
[BlackElo "2662"]
[Result "1/2-1/2"]
[Round "10"]
[TimeControl "180+1"]
[Date "2021.08.31"]
[WhiteClock "0:00:10"]
[BlackClock "0:00:02"]

1. Nf3 {[%clk 0:03:00]}  Nf6 {[%clk 0:02:59]} 2. c4 {[%clk 0:02:59]}  e6 {[%clk 0:02:59]} 3. Nc3 {[%clk 0:02:59]}  d5 {[%clk 0:02:58]} 4. d4 {[%clk 0:02:59]}  Be7 {[%clk 0:02:56]} 5. e3 {[%clk 0:02:58]}  O-O {[%clk 0:02:56]} 6. a3 {[%clk 0:02:55]}  b6 {[%clk 0:02:56]} 7. cxd5 {[%clk 0:02:55]}  exd5 {[%clk 0:02:55]} 8. Bd3 {[%clk 0:02:54]}  Bb7 {[%clk 0:02:55]} 9. O-O {[%clk 0:02:54]}  Nbd7 {[%clk 0:02:55]} 10. b4 {[%clk 0:02:51]}  c5 {[%clk 0:02:51]} 11. bxc5 {[%clk 0:02:49]}  bxc5 {[%clk 0:02:51]} 12. dxc5 {[%clk 0:02:47]}  Nxc5 {[%clk 0:02:51]} 13. Rb1 {[%clk 0:02:44]}  Nxd3 {[%clk 0:02:40]} 14. Qxd3 {[%clk 0:02:43]}  Qd7 {[%clk 0:02:36]} 15. Rd1 {[%clk 0:02:38]}  Rac8 {[%clk 0:02:34]} 16. Bd2 {[%clk 0:02:38]}  Rfd8 {[%clk 0:02:31]} 17. Nd4 {[%clk 0:02:29]}  Ba8 {[%clk 0:02:29]} 18. Qb5 {[%clk 0:02:24]}  Ne4 {[%clk 0:02:27]} 19. Qxd7 {[%clk 0:02:23]}  Rxd7 {[%clk 0:02:27]} 20. Nxe4 {[%clk 0:02:23]}  dxe4 {[%clk 0:02:26]} 21. Bb4 {[%clk 0:02:23]}  Bf6 {[%clk 0:02:25]} 22. Nf5 {[%clk 0:02:20]}  Rdc7 {[%clk 0:02:16]} 23. Nd6 {[%clk 0:02:17]}  Rb8 {[%clk 0:02:14]} 24. Rbc1 {[%clk 0:02:14]}  Rxc1 {[%clk 0:02:13]} 25. Rxc1 {[%clk 0:02:15]}  g6 {[%clk 0:02:09]} 26. h3 {[%clk 0:02:07]}  Be5 {[%clk 0:02:06]} 27. Rc7 {[%clk 0:01:55]}  a5 {[%clk 0:01:59]} 28. Re7 {[%clk 0:01:38]}  axb4 {[%clk 0:01:07]} 29. Rxe5 {[%clk 0:01:38]}  bxa3 {[%clk 0:00:48]} 30. Ra5 {[%clk 0:01:37]}  Bc6 {[%clk 0:00:44]} 31. Rxa3 {[%clk 0:01:36]}  Rb1+ {[%clk 0:00:45]} 32. Kh2 {[%clk 0:01:36]}  f5 {[%clk 0:00:43]} 33. Kg3 {[%clk 0:01:36]}  Rb2 {[%clk 0:00:42]} 34. Ra7 {[%clk 0:01:35]}  Rd2 {[%clk 0:00:38]} 35. Nc4 {[%clk 0:01:32]}  Rc2 {[%clk 0:00:38]} 36. Ne5 {[%clk 0:01:32]}  Bb5 {[%clk 0:00:38]} 37. h4 {[%clk 0:01:31]}  Be8 {[%clk 0:00:32]} 38. Re7 {[%clk 0:01:23]}  Ba4 {[%clk 0:00:26]} 39. Nf7 {[%clk 0:01:06]}  Bb3 {[%clk 0:00:17]} 40. Nh6+ {[%clk 0:01:01]}  Kh8 {[%clk 0:00:17]} 41. Rb7 {[%clk 0:00:56]}  Ba2 {[%clk 0:00:17]} 42. h5 {[%clk 0:00:49]}  gxh5 {[%clk 0:00:16]} 43. Nxf5 {[%clk 0:00:47]}  Be6 {[%clk 0:00:15]} 44. Rb8+ {[%clk 0:00:45]}  Rc8 {[%clk 0:00:12]} 45. Rxc8+ {[%clk 0:00:43]}  Bxc8 {[%clk 0:00:11]} 46. Nd6 {[%clk 0:00:43]}  Be6 {[%clk 0:00:10]} 47. Nxe4 {[%clk 0:00:43]}  Bd5 {[%clk 0:00:10]} 48. Nf6 {[%clk 0:00:43]}  h4+ {[%clk 0:00:10]} 49. Kh3 {[%clk 0:00:41]}  Bc6 {[%clk 0:00:10]} 50. f3 {[%clk 0:00:41]}  Kg7 {[%clk 0:00:10]} 51. Nh5+ {[%clk 0:00:41]}  Kg6 {[%clk 0:00:10]} 52. Kxh4 {[%clk 0:00:41]}  Bb5 {[%clk 0:00:09]} 53. Ng3 {[%clk 0:00:36]}  Bd3 {[%clk 0:00:08]} 54. Kg4 {[%clk 0:00:36]}  Bb5 {[%clk 0:00:08]} 55. Kf4 {[%clk 0:00:36]}  Kf6 {[%clk 0:00:07]} 56. e4 {[%clk 0:00:36]}  Ba6 {[%clk 0:00:07]} 57. Nf5 {[%clk 0:00:37]}  Bb5 {[%clk 0:00:07]} 58. g4 {[%clk 0:00:37]}  Be2 {[%clk 0:00:06]} 59. Ne3 {[%clk 0:00:36]}  Bd3 {[%clk 0:00:06]} 60. Nd5+ {[%clk 0:00:37]}  Ke6 {[%clk 0:00:05]} 61. Kg5 {[%clk 0:00:36]}  Ke5 {[%clk 0:00:05]} 62. Kh6 {[%clk 0:00:33]}  Be2 {[%clk 0:00:06]} 63. g5 {[%clk 0:00:17]}  Bxf3 {[%clk 0:00:06]} 64. Nf6 {[%clk 0:00:17]}  Kf4 {[%clk 0:00:04]} 65. Nxh7 {[%clk 0:00:09]}  Bxe4 {[%clk 0:00:04]} 66. g6 {[%clk 0:00:10]}  Bxg6 {[%clk 0:00:02]} 1/2-1/2


[Site "https://www.chess.com"]

[Event "Titled Tuesday Blitz August 31 2021"]
[White "Nazaretyan, Tigran"]
[Black "Fier, Alexandr"]
[WhiteFideId "24162345"]
[BlackFideId "2107139"]
[WhiteElo "2167"]
[BlackElo "2569"]
[Result "0-1"]
[Round "10"]
[TimeControl "180+1"]
[Date "2021.08.31"]
[WhiteClock "0:00:15"]
[BlackClock "0:01:17"]

1. d4 {[%clk 0:03:00]}  Nf6 {[%clk 0:02:59]} 2. c4 {[%clk 0:03:00]}  c5 {[%clk 0:03:00]} 3. d5 {[%clk 0:03:00]}  e6 {[%clk 0:03:00]} 4. Nc3 {[%clk 0:03:00]}  exd5 {[%clk 0:03:01]} 5. cxd5 {[%clk 0:03:01]}  d6 {[%clk 0:03:02]} 6. e4 {[%clk 0:03:01]}  g6 {[%clk 0:03:02]} 7. Bd3 {[%clk 0:03:00]}  Bg7 {[%clk 0:03:02]} 8. h3 {[%clk 0:03:00]}  O-O {[%clk 0:03:03]} 9. Nf3 {[%clk 0:03:01]}  Re8 {[%clk 0:03:02]} 10. O-O {[%clk 0:03:00]}  c4 {[%clk 0:03:02]} 11. Bc2 {[%clk 0:02:58]}  b5 {[%clk 0:03:03]} 12. a3 {[%clk 0:02:56]}  Nbd7 {[%clk 0:03:01]} 13. Bf4 {[%clk 0:02:56]}  Nc5 {[%clk 0:03:01]} 14. Re1 {[%clk 0:02:55]}  a6 {[%clk 0:02:53]} 15. e5 {[%clk 0:02:48]}  dxe5 {[%clk 0:02:49]} 16. Nxe5 {[%clk 0:02:48]}  Bb7 {[%clk 0:02:41]} 17. Nc6 {[%clk 0:02:47]}  Qb6 {[%clk 0:02:38]} 18. Ne7+ {[%clk 0:02:35]}  Kf8 {[%clk 0:02:34]} 19. d6 {[%clk 0:02:34]}  Rad8 {[%clk 0:02:29]} 20. Qd4 {[%clk 0:02:14]}  Na4 {[%clk 0:02:03]} 21. Qe5 {[%clk 0:01:48]}  Nxc3 {[%clk 0:01:53]} 22. Qxc3 {[%clk 0:01:44]}  Nh5 {[%clk 0:01:46]} 23. Be5 {[%clk 0:01:42]}  Rxd6 {[%clk 0:01:35]} 24. Bxd6 {[%clk 0:00:29]}  Qxd6 {[%clk 0:01:34]} 25. Qb4 {[%clk 0:00:26]}  Qxb4 {[%clk 0:01:34]} 26. axb4 {[%clk 0:00:26]}  Rxe7 {[%clk 0:01:35]} 27. Rxe7 {[%clk 0:00:25]}  Kxe7 {[%clk 0:01:35]} 28. Re1+ {[%clk 0:00:26]}  Kf8 {[%clk 0:01:35]} 29. b3 {[%clk 0:00:27]}  Nf4 {[%clk 0:01:32]} 30. bxc4 {[%clk 0:00:26]}  bxc4 {[%clk 0:01:33]} 31. g3 {[%clk 0:00:25]}  Nd5 {[%clk 0:01:28]} 32. Rb1 {[%clk 0:00:24]}  Nc3 {[%clk 0:01:27]} 33. Re1 {[%clk 0:00:21]}  Na2 {[%clk 0:01:26]} 34. Rb1 {[%clk 0:00:19]}  Bc6 {[%clk 0:01:25]} 35. Bd1 {[%clk 0:00:13]}  Nc3 {[%clk 0:01:24]} 36. Rc1 {[%clk 0:00:14]}  Nxd1 {[%clk 0:01:25]} 37. Rxd1 {[%clk 0:00:14]}  c3 {[%clk 0:01:25]} 38. Rc1 {[%clk 0:00:14]}  Ba4 {[%clk 0:01:25]} 39. f4 {[%clk 0:00:12]}  c2 {[%clk 0:01:25]} 40. Kf2 {[%clk 0:00:13]}  Bb2 {[%clk 0:01:25]} 41. Rxc2 {[%clk 0:00:12]}  Bxc2 {[%clk 0:01:26]} 42. Ke2 {[%clk 0:00:13]}  Ba4 {[%clk 0:01:26]} 43. Kd2 {[%clk 0:00:13]}  Bb5 {[%clk 0:01:27]} 44. Kc2 {[%clk 0:00:13]}  Bf6 {[%clk 0:01:27]} 45. g4 {[%clk 0:00:13]}  Ke7 {[%clk 0:01:14]} 46. Kd2 {[%clk 0:00:12]}  Kd6 {[%clk 0:01:15]} 47. Ke3 {[%clk 0:00:12]}  Kd5 {[%clk 0:01:15]} 48. g5 {[%clk 0:00:12]}  Bd4+ {[%clk 0:01:16]} 49. Kf3 {[%clk 0:00:12]}  Kc4 {[%clk 0:01:17]} 50. h4 {[%clk 0:00:12]}  Kxb4 {[%clk 0:01:18]} 51. h5 {[%clk 0:00:12]}  a5 {[%clk 0:01:18]} 52. h6 {[%clk 0:00:12]}  a4 {[%clk 0:01:18]} 53. Ke4 {[%clk 0:00:13]}  Bc3 {[%clk 0:01:18]} 54. f5 {[%clk 0:00:13]}  a3 {[%clk 0:01:18]} 55. fxg6 {[%clk 0:00:13]}  fxg6 {[%clk 0:01:19]} 56. Kd5 {[%clk 0:00:14]}  a2 {[%clk 0:01:19]} 57. Ke6 {[%clk 0:00:15]}  a1=Q {[%clk 0:01:20]} 58. Kf7 {[%clk 0:00:16]}  Qa7+ {[%clk 0:01:20]} 59. Kg8 {[%clk 0:00:16]}  Bc4+ {[%clk 0:01:16]} 60. Kf8 {[%clk 0:00:15]}  Qf7# {[%clk 0:01:17]} 0-1


[Site "https://www.chess.com"]

[Event "Titled Tuesday Blitz August 31 2021"]
[White "Ogloblin, Nikolay"]
[Black "Havanecz, Bianka"]
[WhiteFideId "4139658"]
[BlackFideId "704814"]
[WhiteElo "2265"]
[BlackElo "2356"]
[Result "1/2-1/2"]
[Round "10"]
[TimeControl "180+1"]
[Date "2021.08.31"]
[WhiteClock "0:00:13"]
[BlackClock "0:00:08"]

1. d4 {[%clk 0:03:00]}  d5 {[%clk 0:02:59]} 2. Nf3 {[%clk 0:03:01]}  e6 {[%clk 0:02:59]} 3. c4 {[%clk 0:03:01]}  Nf6 {[%clk 0:02:59]} 4. Qc2 {[%clk 0:03:00]}  Be7 {[%clk 0:02:58]} 5. Bf4 {[%clk 0:02:59]}  c6 {[%clk 0:02:55]} 6. e3 {[%clk 0:02:58]}  O-O {[%clk 0:02:53]} 7. Nc3 {[%clk 0:02:58]}  Nbd7 {[%clk 0:02:53]} 8. h3 {[%clk 0:02:57]}  Re8 {[%clk 0:02:53]} 9. a3 {[%clk 0:02:55]}  Nf8 {[%clk 0:02:48]} 10. Bd3 {[%clk 0:02:53]}  a6 {[%clk 0:02:32]} 11. O-O {[%clk 0:02:51]}  dxc4 {[%clk 0:02:32]} 12. Bxc4 {[%clk 0:02:51]}  b5 {[%clk 0:02:32]} 13. Ba2 {[%clk 0:02:51]}  Bb7 {[%clk 0:02:22]} 14. Rfd1 {[%clk 0:02:50]}  Qb6 {[%clk 0:02:21]} 15. b4 {[%clk 0:02:50]}  a5 {[%clk 0:02:20]} 16. Rab1 {[%clk 0:02:49]}  axb4 {[%clk 0:02:19]} 17. axb4 {[%clk 0:02:49]}  Nd5 {[%clk 0:02:17]} 18. Nxd5 {[%clk 0:02:37]}  cxd5 {[%clk 0:02:17]} 19. Bc7 {[%clk 0:02:32]}  Qc6 {[%clk 0:02:17]} 20. Qxc6 {[%clk 0:02:25]}  Bxc6 {[%clk 0:02:18]} 21. Rd2 {[%clk 0:02:26]}  Rec8 {[%clk 0:02:09]} 22. Bb6 {[%clk 0:02:26]}  Nd7 {[%clk 0:02:04]} 23. Bc5 {[%clk 0:02:25]}  Bf8 {[%clk 0:02:03]} 24. Bb3 {[%clk 0:02:23]}  Ra3 {[%clk 0:01:51]} 25. Ra2 {[%clk 0:02:19]}  Rca8 {[%clk 0:01:50]} 26. Rxa3 {[%clk 0:02:19]}  Rxa3 {[%clk 0:01:51]} 27. Bd1 {[%clk 0:02:08]}  f6 {[%clk 0:01:49]} 28. Be2 {[%clk 0:02:07]}  Kf7 {[%clk 0:01:34]} 29. Rc1 {[%clk 0:02:00]}  Nb8 {[%clk 0:01:34]} 30. Ne1 {[%clk 0:01:55]}  Bd7 {[%clk 0:01:08]} 31. Nd3 {[%clk 0:01:48]}  Na6 {[%clk 0:01:05]} 32. Bxf8 {[%clk 0:01:44]}  Kxf8 {[%clk 0:01:04]} 33. Nc5 {[%clk 0:01:44]}  Nxc5 {[%clk 0:00:58]} 34. Rxc5 {[%clk 0:01:43]}  Rb3 {[%clk 0:00:55]} 35. Bxb5 {[%clk 0:01:42]}  Bxb5 {[%clk 0:00:55]} 36. Rxb5 {[%clk 0:01:42]}  Rb2 {[%clk 0:00:53]} 37. Rb7 {[%clk 0:01:41]}  h5 {[%clk 0:00:53]} 38. h4 {[%clk 0:01:40]}  Kg8 {[%clk 0:00:45]} 39. g3 {[%clk 0:01:40]}  Kf8 {[%clk 0:00:45]} 40. Kg2 {[%clk 0:01:40]}  g6 {[%clk 0:00:37]} 41. b5 {[%clk 0:01:39]}  Rb3 {[%clk 0:00:35]} 42. b6 {[%clk 0:01:38]}  e5 {[%clk 0:00:28]} 43. dxe5 {[%clk 0:01:34]}  fxe5 {[%clk 0:00:29]} 44. Rd7 {[%clk 0:01:34]}  Rxb6 {[%clk 0:00:29]} 45. Rxd5 {[%clk 0:01:34]}  Re6 {[%clk 0:00:30]} 46. e4 {[%clk 0:01:25]}  Kf7 {[%clk 0:00:29]} 47. Kf3 {[%clk 0:01:23]}  Kf6 {[%clk 0:00:30]} 48. Ke3 {[%clk 0:01:20]}  Ra6 {[%clk 0:00:30]} 49. Rd3 {[%clk 0:01:21]}  Ke6 {[%clk 0:00:28]} 50. Rb3 {[%clk 0:01:20]}  Rc6 {[%clk 0:00:27]} 51. f3 {[%clk 0:01:20]}  Ra6 {[%clk 0:00:25]} 52. f4 {[%clk 0:01:19]}  Rc6 {[%clk 0:00:24]} 53. Ra3 {[%clk 0:01:14]}  Rb6 {[%clk 0:00:24]} 54. Rc3 {[%clk 0:01:14]}  Ra6 {[%clk 0:00:24]} 55. Kf3 {[%clk 0:01:13]}  Rb6 {[%clk 0:00:23]} 56. fxe5 {[%clk 0:01:12]}  Kxe5 {[%clk 0:00:22]} 57. Rc5+ {[%clk 0:01:12]}  Kf6 {[%clk 0:00:21]} 58. Kf4 {[%clk 0:01:11]}  Rb1 {[%clk 0:00:21]} 59. Rc6+ {[%clk 0:01:10]}  Kf7 {[%clk 0:00:22]} 60. Kg5 {[%clk 0:01:03]}  Rb5+ {[%clk 0:00:22]} 61. Kf4 {[%clk 0:01:03]}  Ra5 {[%clk 0:00:20]} 62. Rd6 {[%clk 0:00:58]}  Rb5 {[%clk 0:00:21]} 63. Rd5 {[%clk 0:00:58]}  Rb1 {[%clk 0:00:21]} 64. Kg5 {[%clk 0:00:55]}  Rb4 {[%clk 0:00:16]} 65. Re5 {[%clk 0:00:49]}  Rc4 {[%clk 0:00:14]} 66. Kf4 {[%clk 0:00:47]}  Kf6 {[%clk 0:00:13]} 67. Ra5 {[%clk 0:00:46]}  Rc1 {[%clk 0:00:12]} 68. Ra6+ {[%clk 0:00:46]}  Kg7 {[%clk 0:00:12]} 69. Rb6 {[%clk 0:00:42]}  Rc5 {[%clk 0:00:10]} 70. Rd6 {[%clk 0:00:38]}  Kf7 {[%clk 0:00:09]} 71. Rd5 {[%clk 0:00:38]}  Rc1 {[%clk 0:00:10]} 72. Rd7+ {[%clk 0:00:38]}  Ke6 {[%clk 0:00:09]} 73. Rg7 {[%clk 0:00:35]}  Kf6 {[%clk 0:00:10]} 74. Ra7 {[%clk 0:00:34]}  Rf1+ {[%clk 0:00:10]} 75. Ke3 {[%clk 0:00:35]}  Rg1 {[%clk 0:00:11]} 76. Kf2 {[%clk 0:00:34]}  Rd1 {[%clk 0:00:11]} 77. Ra6+ {[%clk 0:00:33]}  Kf7 {[%clk 0:00:11]} 78. Kf3 {[%clk 0:00:33]}  Rd3+ {[%clk 0:00:11]} 79. Kf4 {[%clk 0:00:32]}  Rb3 {[%clk 0:00:11]} 80. Ra7+ {[%clk 0:00:29]}  Ke6 {[%clk 0:00:11]} 81. Ra5 {[%clk 0:00:25]}  Kf7 {[%clk 0:00:11]} 82. Ra6 {[%clk 0:00:24]}  Rc3 {[%clk 0:00:10]} 83. Ke5 {[%clk 0:00:19]}  Rxg3 {[%clk 0:00:09]} 84. Ra7+ {[%clk 0:00:19]}  Kg8 {[%clk 0:00:10]} 85. Kf6 {[%clk 0:00:19]}  Rg4 {[%clk 0:00:10]} 86. e5 {[%clk 0:00:18]}  Rxh4 {[%clk 0:00:10]} 87. e6 {[%clk 0:00:17]}  Re4 {[%clk 0:00:06]} 88. Rg7+ {[%clk 0:00:16]}  Kf8 {[%clk 0:00:05]} 89. Rxg6 {[%clk 0:00:15]}  Rf4+ {[%clk 0:00:05]} 90. Ke5 {[%clk 0:00:15]}  Rf1 {[%clk 0:00:05]} 91. Rh6 {[%clk 0:00:14]}  Ke7 {[%clk 0:00:05]} 92. Rh7+ {[%clk 0:00:13]}  Ke8 {[%clk 0:00:05]} 93. Rxh5 {[%clk 0:00:13]}  Re1+ {[%clk 0:00:05]} 94. Kf6 {[%clk 0:00:13]}  Rf1+ {[%clk 0:00:05]} 95. Rf5 {[%clk 0:00:13]}  Rxf5+ {[%clk 0:00:05]} 96. Kxf5 {[%clk 0:00:13]}  Ke7 {[%clk 0:00:06]} 97. Ke5 {[%clk 0:00:13]}  Ke8 {[%clk 0:00:07]} 98. Kf6 {[%clk 0:00:14]}  Kf8 {[%clk 0:00:07]} 99. Kf5 {[%clk 0:00:14]}  Ke7 {[%clk 0:00:07]} 100. Ke5 {[%clk 0:00:13]}  Ke8 {[%clk 0:00:08]} 101. Kd5 {[%clk 0:00:13]}  Ke7 {[%clk 0:00:08]} 102. Ke5 {[%clk 0:00:13]} 1/2-1/2


[Site "https://www.chess.com"]

[Event "Titled Tuesday Blitz August 31 2021"]
[White "Perera Alfonso, Rene Humberto"]
[Black "Mokshanov, Alexey"]
[WhiteFideId "3514722"]
[BlackFideId "24121657"]
[WhiteElo "2313"]
[BlackElo "2262"]
[Result "0-1"]
[Round "10"]
[TimeControl "180+1"]
[Date "2021.08.31"]
[WhiteClock "0:00:14"]
[BlackClock "0:00:44"]

1. e4 {[%clk 0:02:53]}  e6 {[%clk 0:02:59]} 2. d4 {[%clk 0:02:52]}  d5 {[%clk 0:03:00]} 3. Nc3 {[%clk 0:02:51]}  Nf6 {[%clk 0:03:00]} 4. e5 {[%clk 0:02:49]}  Nfd7 {[%clk 0:03:00]} 5. f4 {[%clk 0:02:46]}  c5 {[%clk 0:03:00]} 6. Nf3 {[%clk 0:02:45]}  Nc6 {[%clk 0:03:00]} 7. Be3 {[%clk 0:02:44]}  Be7 {[%clk 0:03:01]} 8. Qd2 {[%clk 0:02:43]}  O-O {[%clk 0:03:01]} 9. g3 {[%clk 0:02:41]}  b6 {[%clk 0:03:00]} 10. Bg2 {[%clk 0:02:41]}  f5 {[%clk 0:02:56]} 11. exf6 {[%clk 0:02:36]}  Nxf6 {[%clk 0:02:52]} 12. Ne5 {[%clk 0:02:21]}  Bb7 {[%clk 0:02:25]} 13. Nxc6 {[%clk 0:02:11]}  Bxc6 {[%clk 0:02:25]} 14. O-O {[%clk 0:02:10]}  Ng4 {[%clk 0:02:23]} 15. Kh1 {[%clk 0:02:07]}  Nxe3 {[%clk 0:02:20]} 16. Qxe3 {[%clk 0:02:08]}  cxd4 {[%clk 0:02:21]} 17. Qxe6+ {[%clk 0:02:02]}  Kh8 {[%clk 0:02:20]} 18. Qxc6 {[%clk 0:02:02]}  Rc8 {[%clk 0:01:50]} 19. Qxd5 {[%clk 0:01:51]}  dxc3 {[%clk 0:01:50]} 20. b3 {[%clk 0:01:45]}  Qxd5 {[%clk 0:01:46]} 21. Bxd5 {[%clk 0:01:46]}  Rcd8 {[%clk 0:01:42]} 22. Rad1 {[%clk 0:01:45]}  g6 {[%clk 0:01:40]} 23. Kg2 {[%clk 0:01:43]}  Bf6 {[%clk 0:01:40]} 24. Kf3 {[%clk 0:01:39]}  Rfe8 {[%clk 0:01:35]} 25. Bc4 {[%clk 0:01:38]}  Kg7 {[%clk 0:01:32]} 26. Bb5 {[%clk 0:01:27]}  Rf8 {[%clk 0:01:14]} 27. Rfe1 {[%clk 0:01:19]}  Rd2 {[%clk 0:01:13]} 28. Rxd2 {[%clk 0:00:49]}  cxd2 {[%clk 0:01:13]} 29. Rd1 {[%clk 0:00:49]}  Rd8 {[%clk 0:01:10]} 30. Bd3 {[%clk 0:00:48]}  Bc3 {[%clk 0:01:09]} 31. Be2 {[%clk 0:00:46]}  Re8 {[%clk 0:01:04]} 32. Bd3 {[%clk 0:00:45]}  h5 {[%clk 0:01:02]} 33. Be2 {[%clk 0:00:39]}  Kf6 {[%clk 0:01:01]} 34. Bd3 {[%clk 0:00:36]}  Re7 {[%clk 0:01:01]} 35. h4 {[%clk 0:00:34]}  Re8 {[%clk 0:01:00]} 36. Be2 {[%clk 0:00:33]}  Re7 {[%clk 0:01:00]} 37. Bd3 {[%clk 0:00:32]}  Re8 {[%clk 0:01:01]} 38. Be4 {[%clk 0:00:25]}  b5 {[%clk 0:00:49]} 39. a3 {[%clk 0:00:24]}  a5 {[%clk 0:00:45]} 40. Bd3 {[%clk 0:00:19]}  b4 {[%clk 0:00:45]} 41. a4 {[%clk 0:00:18]}  Re7 {[%clk 0:00:45]} 42. Be2 {[%clk 0:00:17]}  Kg7 {[%clk 0:00:44]} 43. Bd3 {[%clk 0:00:17]}  Re6 {[%clk 0:00:44]} 44. Be2 {[%clk 0:00:16]}  Kf6 {[%clk 0:00:44]} 45. Bd3 {[%clk 0:00:16]}  Ke7 {[%clk 0:00:44]} 46. Be2 {[%clk 0:00:16]}  Kd6 {[%clk 0:00:44]} 47. Bd3 {[%clk 0:00:17]}  Kc5 {[%clk 0:00:44]} 48. Be2 {[%clk 0:00:17]}  Kd4 {[%clk 0:00:45]} 49. Bd3 {[%clk 0:00:17]}  Re3+ {[%clk 0:00:44]} 50. Kf2 {[%clk 0:00:16]}  Rxd3 {[%clk 0:00:44]} 51. cxd3 {[%clk 0:00:16]}  Kxd3 {[%clk 0:00:45]} 52. g4 {[%clk 0:00:16]}  hxg4 {[%clk 0:00:45]} 53. h5 {[%clk 0:00:16]}  gxh5 {[%clk 0:00:45]} 54. f5 {[%clk 0:00:17]}  h4 {[%clk 0:00:45]} 55. Rh1 {[%clk 0:00:12]}  h3 {[%clk 0:00:45]} 56. Kg3 {[%clk 0:00:12]}  Kc2 {[%clk 0:00:44]} 57. Kxg4 {[%clk 0:00:13]}  d1=Q+ {[%clk 0:00:43]} 58. Rxd1 {[%clk 0:00:13]}  Kxd1 {[%clk 0:00:44]} 59. Kxh3 {[%clk 0:00:14]}  Kc2 {[%clk 0:00:44]} 0-1


[Site "https://www.chess.com"]

[Event "Titled Tuesday Blitz August 31 2021"]
[White "Perez Gormaz, Matias"]
[Black "Aditya Mittal"]
[WhiteFideId "3406342"]
[BlackFideId "35042025"]
[WhiteElo "2352"]
[BlackElo "2171"]
[Result "1-0"]
[Round "10"]
[TimeControl "180+1"]
[Date "2021.08.31"]
[WhiteClock "0:00:12"]
[BlackClock "0:00:04"]

1. a3 {[%clk 0:03:00]}  e5 {[%clk 0:02:59]} 2. b4 {[%clk 0:03:00]}  d5 {[%clk 0:02:59]} 3. Bb2 {[%clk 0:03:00]}  Nd7 {[%clk 0:02:57]} 4. Nf3 {[%clk 0:02:59]}  e4 {[%clk 0:02:56]} 5. Nd4 {[%clk 0:02:59]}  Ngf6 {[%clk 0:02:56]} 6. e3 {[%clk 0:02:58]}  g6 {[%clk 0:02:54]} 7. Be2 {[%clk 0:02:55]}  Bg7 {[%clk 0:02:54]} 8. d3 {[%clk 0:02:56]}  O-O {[%clk 0:02:54]} 9. Nd2 {[%clk 0:02:54]}  exd3 {[%clk 0:02:51]} 10. cxd3 {[%clk 0:02:54]}  c6 {[%clk 0:02:44]} 11. h4 {[%clk 0:02:54]}  h5 {[%clk 0:02:43]} 12. N2f3 {[%clk 0:02:53]}  Re8 {[%clk 0:02:44]} 13. Ng5 {[%clk 0:02:52]}  Nf8 {[%clk 0:02:43]} 14. O-O {[%clk 0:02:50]}  N6h7 {[%clk 0:02:42]} 15. Ngf3 {[%clk 0:02:49]}  Ne6 {[%clk 0:02:41]} 16. Nxe6 {[%clk 0:02:45]}  Bxe6 {[%clk 0:02:42]} 17. Bxg7 {[%clk 0:02:45]}  Kxg7 {[%clk 0:02:42]} 18. Qd2 {[%clk 0:02:44]}  Bg4 {[%clk 0:02:42]} 19. g3 {[%clk 0:02:42]}  Qf6 {[%clk 0:02:38]} 20. Nd4 {[%clk 0:02:35]}  Bxe2 {[%clk 0:02:34]} 21. Nxe2 {[%clk 0:02:35]}  g5 {[%clk 0:02:32]} 22. Qc3 {[%clk 0:02:25]}  gxh4 {[%clk 0:02:27]} 23. Qxf6+ {[%clk 0:02:21]}  Kxf6 {[%clk 0:02:26]} 24. gxh4 {[%clk 0:02:22]}  Rg8+ {[%clk 0:02:23]} 25. Kh2 {[%clk 0:02:21]}  Rg4 {[%clk 0:02:23]} 26. Kh3 {[%clk 0:02:21]}  Ke7 {[%clk 0:01:49]} 27. Ng3 {[%clk 0:02:10]}  Nf6 {[%clk 0:01:49]} 28. Nxh5 {[%clk 0:01:50]}  Rh8 {[%clk 0:01:40]} 29. f3 {[%clk 0:01:42]}  Rg6 {[%clk 0:01:24]} 30. Ng3 {[%clk 0:01:42]}  Ke6 {[%clk 0:01:21]} 31. e4 {[%clk 0:01:32]}  Rgh6 {[%clk 0:01:17]} 32. Nf5 {[%clk 0:01:32]}  R6h7 {[%clk 0:01:12]} 33. Rg1 {[%clk 0:01:31]}  Nh5 {[%clk 0:01:11]} 34. Rg4 {[%clk 0:01:27]}  Nf6 {[%clk 0:01:06]} 35. Rg5 {[%clk 0:01:17]}  Nh5 {[%clk 0:00:42]} 36. Kg4 {[%clk 0:01:11]}  Nf6+ {[%clk 0:00:38]} 37. Kf4 {[%clk 0:01:07]}  Rxh4+ {[%clk 0:00:23]} 38. Nxh4 {[%clk 0:01:05]}  Rxh4+ {[%clk 0:00:23]} 39. Ke3 {[%clk 0:01:06]}  Rh2 {[%clk 0:00:23]} 40. f4 {[%clk 0:00:38]}  dxe4 {[%clk 0:00:18]} 41. dxe4 {[%clk 0:00:38]}  Rb2 {[%clk 0:00:18]} 42. Re5+ {[%clk 0:00:36]}  Kd6 {[%clk 0:00:17]} 43. Rd1+ {[%clk 0:00:36]}  Kc7 {[%clk 0:00:17]} 44. Rf5 {[%clk 0:00:35]}  Rb3+ {[%clk 0:00:11]} 45. Rd3 {[%clk 0:00:34]}  Ng4+ {[%clk 0:00:12]} 46. Kd4 {[%clk 0:00:34]}  Rb2 {[%clk 0:00:08]} 47. Rxf7+ {[%clk 0:00:33]}  Kb6 {[%clk 0:00:09]} 48. e5 {[%clk 0:00:29]}  Nf2 {[%clk 0:00:09]} 49. Rf3 {[%clk 0:00:19]}  Re2 {[%clk 0:00:09]} 50. e6 {[%clk 0:00:17]}  Re4+ {[%clk 0:00:04]} 51. Kc3 {[%clk 0:00:16]}  Ng4 {[%clk 0:00:03]} 52. f5 {[%clk 0:00:16]}  Ne5 {[%clk 0:00:02]} 53. Rg3 {[%clk 0:00:13]}  Rc4+ {[%clk 0:00:03]} 54. Kb3 {[%clk 0:00:13]}  Re4 {[%clk 0:00:03]} 55. Rh7 {[%clk 0:00:10]}  a5 {[%clk 0:00:03]} 56. bxa5+ {[%clk 0:00:10]}  Kxa5 {[%clk 0:00:03]} 57. Rhh3 {[%clk 0:00:09]}  Ng4 {[%clk 0:00:02]} 58. Rxg4 {[%clk 0:00:09]}  Rxg4 {[%clk 0:00:03]} 59. Re3 {[%clk 0:00:09]}  Rf4 {[%clk 0:00:03]} 60. e7 {[%clk 0:00:10]}  Rxf5 {[%clk 0:00:04]} 61. e8=Q {[%clk 0:00:10]}  Rb5+ {[%clk 0:00:05]} 62. Kc3 {[%clk 0:00:10]}  Kb6 {[%clk 0:00:06]} 63. Qd8+ {[%clk 0:00:10]}  Ka6 {[%clk 0:00:06]} 64. Re8 {[%clk 0:00:11]}  Rc5+ {[%clk 0:00:05]} 65. Kd4 {[%clk 0:00:10]}  Rb5 {[%clk 0:00:04]} 66. Qa8+ {[%clk 0:00:10]}  Kb6 {[%clk 0:00:05]} 67. a4 {[%clk 0:00:10]}  Rb4+ {[%clk 0:00:05]} 68. Kc3 {[%clk 0:00:11]}  Rh4 {[%clk 0:00:04]} 69. Qd8+ {[%clk 0:00:11]}  Ka6 {[%clk 0:00:04]} 70. Qxh4 {[%clk 0:00:12]} 1-0


[Site "https://www.chess.com"]